[Event "American Cup Open Champions 2024"]
[Site "Saint Louis"]
[Date "2024.03.14"]
[Round "2.2"]
[White "Robson, Ray"]
[Black "So, Wesley"]
[Result "1-0"]
[ECO "D31"]
[WhiteElo "2696"]
[BlackElo "2757"]
[Annotator "TA"]
[PlyCount "115"]
[EventDate "2024.03.11"]
[EventType "k.o."]
[EventCountry "USA"]
[SourceTitle "playchess.com"]
[Source "ChessBase"]
[SourceQuality "1"]
[TimeControl "5400+30"]

{[%evp 54,115,90,94,94,97,101,97,97,97,212,212,200,192,241,207,306,301,474,478,426,227,216,190,227,227,409,401,444,436,419,407,368,550,516,392,561,548,566,543,484,391,649,654,600,327,629,410,631,568,652,566,1608,11206,29952,29940,29972,29973,29980,29980,29981,29982,29981,29982]} 1. d4 {[%emt 1:15:42]} d5 {[%emt 1:15:43]} 2. c4 {[%emt 0:00:22]} e6 {[%emt 0:00:26]} 3. Nc3 {[%emt 0:00:32]} Be7 {[%emt 0:00:24]} 4. cxd5 {[%emt 0:00:29]} exd5 {[%emt 0:00:21]} 5. Bf4 {[%emt 0:00:37]} c6 {[%emt 0:00:25]} 6. e3 {[%emt 0:00:24]} Bf5 {[%emt 0:00:21]} 7. Nge2 {[%emt 0:00:41]} Nd7 {[%emt 0:00:28]} 8. h4 {[%emt 0:00:31] D31: Queen's Gambit Declined: Semi-Slav without ...Nf6 (+ Marshall Gambit and Noteboom) and Exchange Variation lines without ...Nf6.} Ngf6 {[%emt 0:00:42]} 9. Ng3 {[%emt 0:00:31]} Be6 {[%emt 0:00:24]} 10. Bd3 {[%emt 0:00:33]} Nb6 {[%emt 0:01:53]} 11. Qc2 {[%emt 0:00:53]} Bd6 {[%emt 0:00:32]} 12. Nce2 $146 {[%emt 0:00:30]} ({Predecessor:} 12. O-O-O Bxf4 13. exf4 Qd6 14. f5 Bd7 15. Rde1+ Kd8 16. Nge2 a6 {1-0 Moroni,L (2564)-Mazur,S (2441) EU-ch 20th Skopje 2019 (4)}) 12... Bxf4 {[%emt 0:01:03]} 13. Nxf4 {[%emt 0:00:49]} Qe7 {[%emt 0:00:22]} 14. a4 {[%emt 0:06:52]} a5 {[%emt 0:00:40]} 15. Ngh5 {[%emt 0:00:58]} Nxh5 {[%emt 0:04:01]} 16. Nxh5 {[%emt 0:00:22]} g6 {[%emt 0:00:21]} 17. Nf4 {[%emt 0:00:32]} Bg4 {[%emt 0:03:19]} 18. Kf1 {[%emt 0:04:35]} Kf8 {[%emt 0:03:09]} 19. Re1 {[%emt 0:00:24]} Re8 {[%emt 0:00:37]} 20. f3 {[%emt 0:00:50]} Bd7 {[%emt 0:00:51]} 21. Qb3 {[%emt 0:02:00]} Qd8 {[%emt 0:00:22]} 22. Qc3 {[%emt 0:01:02]} Nc8 {[%emt 0:00:34]} 23. b4 {[%emt 0:00:36]} Nd6 {[%emt 0:01:54]} 24. bxa5 {[%emt 0:00:33]} Bf5 {[%emt 0:00:22]} 25. Bxf5 {[%emt 0:00:34]} Nxf5 {[%emt 0:00:22]} 26. Kf2 {[%emt 0:00:28]} Kg7 {[%emt 0:00:33]} 27. e4 {[%emt 0:00:37]} dxe4 {[%emt 0:01:43]} 28. d5+ {[%emt 0:00:22]} Qf6 {[%emt 0:00:21]} 29. Qxf6+ {[%emt 0:00:24]} Kxf6 {[%emt 0:00:21]} 30. Rxe4 {[%emt 0:00:45]} Rxe4 {[%emt 0:02:07]} 31. fxe4 {[%emt 0:00:22]} Nd6 {[%emt 0:00:20]} (31... Ke5 $16 {was called for.}) 32. dxc6 $18 {[%emt 0:00:32]} bxc6 {[%emt 0:00:21]} 33. Rc1 $1 {[%emt 0:00:38]} Rc8 {[%emt 0:00:49]} (33... Nxe4+ {keeps fighting.} 34. Ke3 Re8 35. Rxc6+ Kf5) 34. Ke3 {[%emt 0:00:41]} Ke7 {[%emt 0:00:26] [#]} (34... Re8 $142 35. Rxc6 Rxe4+ 36. Kf3 Rd4) 35. Nd3 $1 $18 {[%emt 0:00:41]} f5 {[%emt 0:00:47]} (35... f6 $142 36. a6 f5) 36. e5 $18 {[%emt 0:00:48]} Ne4 {[%emt 0:00:21]} 37. Nc5 {[%emt 0:00:33]} (37. a6 $142) 37... Nxc5 $18 {[%emt 0:00:26]} 38. Rxc5 {[%emt 0:00:21]} Ra8 {[%emt 0:00:21]} 39. Kf4 {[%emt 0:00:43]} (39. Rxc6 Rxa5 40. h5 Rxe5+ 41. Kf3 Ra5 $11) 39... Ra7 $2 {[%emt 0:01:03]} (39... Kd7 40. Kg5 Ke6) 40. Kg5 $18 {[%emt 0:00:30]} (40. Rxc6 Rxa5 41. Rc4 Ke6 $14) 40... Ke6 {[%emt 0:00:21]} 41. Kh6 {[%emt 0:00:29]} (41. Rxc6+ Kxe5 42. a6 f4 $16) 41... Rf7 {[%emt 0:00:47]} 42. a6 {[%emt 0:00:29]} (42. Rxc6+ Kxe5 43. Kg5 Kd4 $18) 42... Ra7 {[%emt 0:00:21]} 43. Ra5 {[%emt 0:00:33]} (43. Rxc6+ Kxe5 44. Kg5 Re7 $18) 43... Kd7 {[%emt 0:00:28]} 44. Kg5 {[%emt 0:00:30]} (44. Kxh7 Kc7 45. Kxg6 Kb6 $11) 44... Ke6 {[%emt 0:00:23]} (44... Ke7 $142 45. h5 Kf7) 45. g3 $18 {[%emt 0:00:26]} Ke7 {[%emt 0:00:48]} 46. h5 {[%emt 0:00:24]} Kf7 {[%emt 0:00:20]} 47. Kh6 {[%emt 0:00:37]} gxh5 $2 {[%emt 0:00:25]} (47... Ke6 48. hxg6 hxg6 49. Kxg6 c5) 48. Kxh5 $18 {[%emt 0:00:33]} Ke6 {[%emt 0:00:24]} 49. Kh6 {[%emt 0:00:30]} Kd7 $2 {[%emt 0:00:48]} (49... c5 50. Rxc5 Rxa6) 50. Kg5 $1 $18 {[%emt 0:00:30]} (50. Kxh7 $2 {is the wrong capture.} Kc7 51. Kg6 Kb6 $19) 50... Ke6 {[%emt 0:00:20] [#]} 51. Kf4 $1 {[%emt 0:00:30]} h6 {[%emt 0:00:23]} 52. Ke3 {[%emt 0:00:29]} Kd7 {[%emt 0:00:20]} 53. Kd4 {[%emt 0:00:25]} h5 {[%emt 0:00:41]} 54. Kc5 {[%emt 0:00:31]} Kc7 {[%emt 0:00:34]} 55. e6 {[%emt 0:00:25]} f4 {[%emt 0:00:28]} 56. gxf4 {[%emt 0:00:23]} h4 {[%emt 0:00:20]} 57. e7 {[%emt 0:00:33]} ({Inferior is} 57. f5 h3 58. e7 Ra8 $11) 57... Ra8 {[%emt 0:00:21]} 58. a7 {[%emt 0:00:29]} 1-0

[Event "American Cup Open Champions 2024"]
[Site "Saint Louis"]
[Date "2024.03.15"]
[Round "2.3"]
[White "Aronian, Levon"]
[Black "Caruana, Fabiano"]
[Result "1/2-1/2"]
[ECO "C00"]
[WhiteElo "2722"]
[BlackElo "2804"]
[Annotator "TA"]
[PlyCount "76"]
[EventDate "2024.03.11"]
[EventType "k.o."]
[EventCountry "USA"]
[SourceTitle "playchess.com"]
[Source "ChessBase"]
[SourceQuality "1"]
[TimeControl "5400+30"]

{[%evp 13,76,0,26,-4,-4,-30,-28,-31,-22,-29,-25,-46,-47,-67,-67,-67,-67,-67,-49,-55,-55,-56,-56,-56,-41,-41,-10,-11,-24,-25,-36,-37,-18,-49,-47,-41,-58,-63,-47,-91,-37,-37,-35,-49,-48,-43,0,0,0,0,8,6,19,19,19,26,32,0,0,0,32,0,0,0,30]} 1. e4 {[%emt 0:00:03]} c5 {[%emt 0:00:04]} 2. Nf3 {[%emt 0:00:04]} e6 {[%emt 0:00:04]} 3. g3 {[%emt 0:00:07]} Nc6 {[%emt 0:00:15]} 4. Bg2 {[%emt 0:00:07]} Nf6 {[%emt 0:00:06]} 5. d3 {[%emt 0:00:09]} d5 {[%emt 0:00:25]} 6. Qe2 {[%emt 0:00:27]} Be7 {[%emt 0:02:24]} 7. O-O {[%emt 0:01:04]} b5 {[%emt 0:00:23]} 8. Bg5 {[%emt 0:11:14]} O-O {[%emt 0:01:32]} 9. e5 {[%emt 0:00:04]} Nd7 {[%emt 0:02:42]} 10. Bxe7 {[%emt 0:00:21] Schwarz hat minimalen Vorteil.} Qxe7 {[%emt 0:01:43]} 11. Nbd2 {[%emt 0:00:22]} a5 {[%emt 0:01:05]} 12. a4 {[%emt 0:07:57]} b4 {[%emt 0:00:59]} 13. b3 {[%emt 0:03:44]} Ba6 {[%emt 0:05:06]} 14. Rfe1 {[%emt 0:01:05]} Rac8 {[%emt 0:00:26]} 15. h4 {[%emt 0:01:01]} Rc7 {[%emt 0:00:58]} 16. Qe3 {[%emt 0:10:14]} Rfc8 {[%emt 0:04:29]} 17. Qf4 {[%emt 0:01:30] [#]} Nd4 $1 {[%emt 0:05:08]} 18. Rac1 {[%emt 0:00:22][%cal Ba1c1,Bc1d1,Bd1d6][%mdl 32]} Nxf3+ {[%emt 0:01:46]} 19. Nxf3 {[%emt 0:03:04]} c4 {[%emt 0:00:52]} 20. dxc4 {[%emt 0:00:35]} dxc4 {[%emt 0:00:05]} 21. Rcd1 {[%emt 0:00:49]} cxb3 {[%emt 0:03:59]} 22. cxb3 {[%emt 0:00:01]} Rc3 {[%emt 0:00:19]} 23. Rd6 {[%emt 0:02:37]} Nc5 {[%emt 0:03:58][%cal Oa6b7]} 24. Re3 {[%emt 0:00:34]} Bb7 {[%emt 0:02:31]} (24... Rxb3 $2 {geht unter.} 25. Rxb3 Nxb3 26. Rxa6 $18) 25. Nd2 {[%emt 0:08:10]} h6 {[%emt 0:02:21]} 26. Bf3 {[%emt 0:05:34]} Qc7 {[%emt 0:05:29]} ({Besser ist} 26... Bxf3 $17 27. Qxf3 Rc1+ 28. Kg2 f5) 27. Kg2 {[%emt 0:03:12]} Bxf3+ {[%emt 0:09:17]} 28. Qxf3 {[%emt 0:01:48]} Nd7 {[%emt 0:00:10][%cal Bc5d7,Bd7b6,Bb6d5,Bd5c3][%mdl 32] [#] Weiss muss nun ...Nxe5 beachten.} 29. Qf4 {[%emt 0:05:09]} ({Nur nicht} 29. Nc4 $2 Nxe5 30. Nxe5 Rxe3 (30... Qxd6 31. Qxf7+ Kh7 32. Qg6+ Kg8 33. Qf7+ Kh8 34. Ng6+ Kh7 35. Rxe6 $11) 31. fxe3 Qxd6 $19) 29... Nb6 {[%emt 0:01:33] Droht stark ...Nd5.} 30. Rf3 {[%emt 0:01:45]} Nd5 {[%emt 0:03:27]} 31. Qg4 {[%emt 0:03:27]} Rxf3 {[%emt 0:13:07]} 32. Qxf3 {[%emt 0:00:24]} Nc3 {[%emt 0:00:55]} 33. Qd3 {[%emt 0:03:01]} g6 {[%emt 0:03:14]} 34. Qf3 {[%emt 0:04:06]} h5 {[%emt 0:02:20]} 35. Qd3 {[%emt 0:03:23]} Kg7 {[%emt 0:03:22]} 36. Qf3 {[%emt 0:01:06]} Kg8 {[%emt 0:03:30]} 37. Qd3 {[%emt 0:01:12]} Kg7 {[%emt 0:00:06]} 38. Qf3 {[%emt 0:00:31]} Kg8 {[%emt 0:00:10] Gewichteter Fehlerwert: Weiß=0.09 (makellos) /Schwarz=0.08 (makellos) .  Fehler:       	---       	Schwarz=1     Ungenau:       	Weiß=5     	Schwarz=2     OK:         	Weiß=11    	Schwarz=12    Bester:       	Weiß=1     	---} 1/2-1/2

[Event "American Cup Open Champions 2024"]
[Site "Saint Louis"]
[Date "2024.03.15"]
[Round "2.3"]
[White "Robson, Ray"]
[Black "So, Wesley"]
[Result "1/2-1/2"]
[ECO "E48"]
[WhiteElo "2696"]
[BlackElo "2757"]
[Annotator "TA"]
[PlyCount "69"]
[EventDate "2024.03.11"]
[EventType "k.o."]
[EventCountry "USA"]
[SourceTitle "playchess.com"]
[Source "ChessBase"]
[SourceQuality "1"]
[TimeControl "5400+30"]

{[%evp 19,69,4,25,10,24,22,25,0,18,17,18,15,13,14,12,0,37,-17,-22,-13,0,0,0,-6,0,0,0,0,0,-8,-4,-5,0,0,0,0,0,0,0,0,0,0,0,0,0,0,6,0,0,0,5,0]} 1. d4 {[%emt 0:02:04]} Nf6 {[%emt 0:00:10]} 2. c4 {[%emt 0:00:13]} e6 {[%emt 0:00:07]} 3. Nc3 {[%emt 0:00:24]} Bb4 {[%emt 0:00:50]} 4. e3 {[%emt 0:00:25]} O-O {[%emt 0:00:07]} 5. Bd3 {[%emt 0:00:46]} c5 {[%emt 0:01:16]} 6. Nge2 {[%emt 0:00:46]} d5 {[%emt 0:00:20]} 7. cxd5 {[%emt 0:00:36]} cxd4 {[%emt 0:00:25]} 8. exd4 {[%emt 0:00:23]} Nxd5 {[%emt 0:00:06]} 9. a3 {[%emt 0:00:44]} Ba5 {[%emt 0:01:18]} 10. O-O {[%emt 0:01:03]} Nc6 {[%emt 0:00:05]} 11. Bc2 {[%emt 0:01:32]} (11. Nxd5 {simplifies} exd5 12. Nf4 Bc7 13. Re1) 11... Bc7 {[%emt 0:00:42]} (11... Nf6 {simplifies} 12. Ne4 Nxe4 13. Bxe4 Bb6) 12. Qd3 {[%emt 0:00:54]} Qh4 {[%emt 0:00:18][%csl Gc7][%cal Rh4h2] [#]} (12... g6 {simplifies} 13. Ne4 f5 14. N4c3 Nxc3 15. bxc3 f4) 13. h3 {[%emt 0:02:35] White has an edge.} Rd8 {[%emt 0:00:46]} 14. Nxd5 {[%emt 0:02:42]} Rxd5 {[%emt 0:01:17]} 15. Be3 {[%emt 0:02:27]} Rd8 {[%emt 0:00:08]} 16. Rac1 {[%emt 0:05:20]} Bd7 {[%emt 0:00:39]} 17. Bb1 {[%emt 0:03:30]} Bd6 {[%emt 0:01:01] Inhibits Rc5.} 18. Qe4 {[%emt 0:30:43]} (18. Ng3 $14) 18... Qxe4 $11 {[%emt 0:01:05] The position is equal.} 19. Bxe4 {[%emt 0:02:02]} f5 {[%emt 0:00:09]} 20. Bf3 {[%emt 0:01:54]} Ne7 {[%emt 0:03:50]} 21. Rfd1 {[%emt 0:08:17]} Bc6 {[%emt 0:03:42]} 22. Bxc6 {[%emt 0:01:38]} Nxc6 {[%emt 0:00:15]} 23. Kf1 {[%emt 0:02:31]} Kf7 {[%emt 0:07:41]} 24. d5 {[%emt 0:02:48]} exd5 {[%emt 0:00:04]} 25. Rxd5 {[%emt 0:00:42]} g6 {[%emt 0:00:04]} 26. g4 {[%emt 0:02:28]} fxg4 {[%emt 0:01:55]} 27. hxg4 {[%emt 0:00:16]} Be7 {[%emt 0:00:14]} 28. Rb5 {[%emt 0:01:51]} Rd7 {[%emt 0:00:26]} 29. Ng3 {[%emt 0:01:32]} a6 {[%emt 0:00:40]} 30. Rb6 {[%emt 0:04:43]} Ne5 {[%emt 0:12:53]} 31. g5 {[%emt 0:00:03]} Bd8 {[%emt 0:01:49]} 32. Rb4 {[%emt 0:02:55]} Be7 {[%emt 0:00:27][%cal Oe5d3] [#] And now ...Nd3! would win.} 33. Rb6 {[%emt 0:01:28]} Bd8 {[%emt 0:00:05]} 34. Rb4 {[%emt 0:00:04]} Be7 {[%emt 0:00:04]} 35. Rb6 {[%emt 0:00:32] A balanced but interesting game.   Weighted Error Value: White=0.08 (flawless) /Black=0.06 (flawless) .  Mistake:       	White=1     	---        Inaccurate:     	---       	Black=1      OK:         	White=12    	Black=9      Best:        	White=1     	---} 1/2-1/2

[Event "American Cup Open Champions 2024"]
[Site "Saint Louis"]
[Date "2024.03.15"]
[Round "2.4"]
[White "Caruana, Fabiano"]
[Black "Aronian, Levon"]
[Result "1/2-1/2"]
[ECO "D90"]
[WhiteElo "2804"]
[BlackElo "2722"]
[Annotator "TA"]
[PlyCount "61"]
[EventDate "2024.03.11"]
[EventType "k.o."]
[EventCountry "USA"]
[SourceTitle "playchess.com"]
[Source "ChessBase"]
[SourceQuality "1"]
[TimeControl "900+10"]

{[%evp 9,61,0,0,0,4,2,15,7,21,4,8,25,15,14,24,27,23,15,18,16,20,0,0,0,0,0,0,0,0,0,0,0,0,0,22,16,20,14,17,0,0,0,0,0,0,0,0,0,0,0,0,0,0,0]} 1. d4 {[%emt 0:00:02]} Nf6 {[%emt 0:00:01]} 2. c4 {[%emt 0:00:02]} g6 {[%emt 0:00:02]} 3. Nc3 {[%emt 0:00:02]} d5 {[%emt 0:00:01]} 4. Nf3 {[%emt 0:00:02]} Bg7 {[%emt 0:00:01]} 5. h4 {[%emt 0:00:01]} O-O {[%emt 0:00:52]} 6. cxd5 {[%emt 0:00:06]} Nxd5 {[%emt 0:00:03]} 7. h5 {[%emt 0:00:02]} c5 {[%emt 0:00:03]} 8. hxg6 {[%emt 0:00:03]} (8. dxc5 Nxc3 9. bxc3 Qxd1+ (9... Bxc3+ 10. Bd2 $15) 10. Kxd1 Bxc3 $17) 8... hxg6 {[%emt 0:00:02]} 9. Bh6 {[%emt 0:00:02]} ({Doch nicht} 9. dxc5 Nxc3 10. bxc3 Qxd1+ (10... Bxc3+ 11. Bd2 $17) 11. Kxd1 Bxc3 $17) 9... Nxc3 {[%emt 0:00:21]} 10. bxc3 {[%emt 0:00:03]} Bxh6 {[%emt 0:00:37]} 11. Rxh6 {[%emt 0:00:03]} Kg7 {[%emt 0:00:22]} 12. Qd2 {[%emt 0:00:25]} cxd4 {[%emt 0:00:01]} 13. cxd4 {[%emt 0:03:31]} Nd7 {[%emt 0:00:02] Die Stellung ist ausgeglichen.} 14. e4 {[%emt 0:02:56][%cal Of3g5]} Nf6 {[%emt 0:00:01]} 15. Rh4 {[%emt 0:01:00]} (15. Ng5 $5) 15... Rh8 {[%emt 0:00:24] Es drohte Qh6+} 16. Rxh8 {[%emt 0:01:12]} Qxh8 {[%emt 0:00:02]} 17. Qf4 {[%emt 0:00:08]} Qd8 {[%emt 0:00:52]} 18. Bd3 {[%emt 0:00:37]} Qa5+ {[%emt 0:00:01]} 19. Ke2 {[%emt 0:02:17]} Bg4 {[%emt 0:00:30]} 20. Rh1 {[%emt 0:00:47] [#] Verhindert Rc8. jetzt Qh6+ und aus.} Bh5 {[%emt 0:01:04][%cal Oa8h8]} (20... Qxa2+ 21. Ke3 Rh8 22. Rxh8 Kxh8 23. Ne5) 21. Qd2 {[%emt 0:00:02] Das Brett brennt.} Qb6 {[%emt 0:02:40][%cal Oa8h8]} 22. e5 {[%emt 0:01:04]} Bxf3+ {[%emt 0:01:14]} 23. Kxf3 {[%emt 0:01:02]} ({Bloß nicht} 23. gxf3 $6 Ng8 $16) 23... Ng8 {[%emt 0:01:48][%cal Oa8d8] Es drohte Qh6+} 24. Be4 {[%emt 0:00:28]} Rd8 {[%emt 0:00:27]} (24... f5 {vereinfacht} 25. exf6+ Qxf6+ 26. Qf4 Qxf4+ 27. Kxf4 Rf8+) 25. d5 {[%emt 0:00:35]} f5 {[%emt 0:00:39]} 26. exf6+ {[%emt 0:01:08]} Qxf6+ {[%emt 0:00:23]} 27. Ke2 {[%emt 0:00:25]} Qa6+ {[%emt 0:01:01]} 28. Bd3 {[%emt 0:00:10]} Qf6 {[%emt 0:00:01]} 29. Be4 {[%emt 0:00:09]} Qa6+ {[%emt 0:00:48]} 30. Bd3 {[%emt 0:00:11]} Qf6 {[%emt 0:00:02]} 31. Be4 {[%emt 0:00:07] Eine ausgeglichene Partie nicht ohne Feinheiten.   Gewichteter Fehlerwert: Weiß=0.02 (makellos) /Schwarz=0.02 (makellos) .  OK:         	Weiß=14    	Schwarz=15} 1/2-1/2

[Event "American Cup Open Champions 2024"]
[Site "Saint Louis"]
[Date "2024.03.15"]
[Round "2.4"]
[White "So, Wesley"]
[Black "Robson, Ray"]
[Result "0-1"]
[ECO "B50"]
[WhiteElo "2757"]
[BlackElo "2696"]
[Annotator "TA"]
[PlyCount "152"]
[EventDate "2024.03.11"]
[EventType "k.o."]
[EventCountry "USA"]
[SourceTitle "playchess.com"]
[Source "ChessBase"]
[SourceQuality "1"]
[TimeControl "900+10"]

{[%evp 62,152,7,6,8,8,8,8,8,0,0,0,0,0,0,0,0,0,0,-8,0,0,0,0,0,0,0,0,0,-137,-109,-191,-191,-168,14,14,14,14,14,14,14,14,14,14,19,19,19,14,14,14,14,14,14,14,14,0,14,14,14,14,14,14,14,14,14,14,14,14,14,0,14,14,14,14,14,14,14,14,14,14,59,59,60,60,60,18,18,18,18,14,14,0,18]} 1. e4 {[%emt 0:00:01]} c5 {[%emt 0:00:03]} 2. Nf3 {[%emt 0:00:01]} d6 {[%emt 0:00:03]} 3. Bc4 {[%emt 0:00:03]} Nf6 {[%emt 0:00:29]} 4. d3 {[%emt 0:00:02]} Nc6 {[%emt 0:01:19]} 5. O-O {[%emt 0:00:02]} g6 {[%emt 0:00:32]} 6. h3 {[%emt 0:00:11] B50: Sizilianisch (Verschiedenes mit 2...d6).} Bg7 {[%emt 0:00:05]} 7. a3 {[%emt 0:00:03]} d5 $5 {[%emt 0:02:14][%mdl 4] Eine interessante Nebenvariante.} 8. exd5 {[%emt 0:03:06]} Nxd5 {[%emt 0:00:02]} 9. Nbd2 $146 {[%emt 0:00:23]} ({Predecessor:} 9. Ng5 O-O 10. Nd2 b6 11. Nde4 Bb7 12. f4 e6 13. c3 h6 14. Nf3 f5 15. Nf2 {0-1 Goodger,M (2093)-Heberla,B (2484) Monarch Assurance 16th 2007 (7)}) 9... O-O {[%emt 0:00:18]} 10. Rb1 {[%emt 0:00:14]} b6 {[%emt 0:00:21]} 11. Ne4 {[%emt 0:00:12]} Nc7 {[%emt 0:01:47]} 12. Re1 {[%emt 0:01:59]} Be6 {[%emt 0:00:24]} 13. Bxe6 {[%emt 0:00:03]} Nxe6 {[%emt 0:00:02]} 14. b4 {[%emt 0:00:02]} cxb4 {[%emt 0:03:04]} 15. axb4 {[%emt 0:00:01]} b5 {[%emt 0:00:13]} 16. Bb2 {[%emt 0:00:10]} Bxb2 {[%emt 0:01:00]} 17. Rxb2 {[%emt 0:00:01]} a5 {[%emt 0:00:04]} 18. bxa5 {[%emt 0:00:03]} Qxa5 {[%emt 0:00:06]} 19. h4 {[%emt 0:01:50]} b4 {[%emt 0:00:33]} 20. Ned2 {[%emt 0:02:19]} Qd5 {[%emt 0:00:38]} 21. Nc4 {[%emt 0:00:28]} Rad8 {[%emt 0:00:16]} 22. Qc1 {[%emt 0:01:33]} Ned4 {[%emt 0:01:41]} 23. Nxd4 {[%emt 0:00:28]} Qxd4 {[%emt 0:00:03]} 24. Re4 {[%emt 0:00:09]} Qf6 {[%emt 0:00:17]} 25. Qg5 {[%emt 0:01:24]} Qxg5 {[%emt 0:01:10]} 26. hxg5 {[%emt 0:00:08]} Rd4 {[%emt 0:00:40]} 27. Rxd4 {[%emt 0:01:10]} Nxd4 {[%emt 0:00:02]} 28. Ne3 {[%emt 0:00:00]} Rc8 {[%emt 0:00:37]} 29. f4 {[%emt 0:02:15]} Rc3 {[%emt 0:00:35]} 30. Nd5 {[%emt 0:00:13]} Rxc2 {[%emt 0:00:09]} 31. Rxb4 {[%emt 0:00:01]} Ne2+ {[%emt 0:00:39]} 32. Kh2 {[%emt 0:00:10]} Kf8 {[%emt 0:00:41]} 33. Rb8+ {[%emt 0:00:10]} Kg7 {[%emt 0:00:00]} 34. Nxe7 {[%emt 0:00:01]} h6 {[%emt 0:00:11]} 35. gxh6+ {[%emt 0:01:16]} Kxh6 {[%emt 0:00:02]} 36. Nd5 {[%emt 0:00:01]} Rd2 {[%emt 0:00:17]} 37. Rh8+ {[%emt 0:00:25]} Kg7 {[%emt 0:00:02]} 38. Rh3 {[%emt 0:00:01]} Nc1 {[%emt 0:00:32]} 39. Nb4 {[%emt 0:00:00]} Rb2 {[%emt 0:00:17]} 40. Na6 {[%emt 0:00:14]} Ne2 {[%emt 0:00:08]} 41. Rf3 {[%emt 0:00:04]} Rb5 {[%emt 0:00:13]} 42. g4 {[%emt 0:00:13]} Ra5 {[%emt 0:00:08]} 43. Nc7 {[%emt 0:00:08]} Ra4 {[%emt 0:00:11]} 44. f5 {[%emt 0:00:23]} Rxg4 {[%emt 0:00:09]} 45. f6+ {[%emt 0:00:05]} (45. fxg6 $11 {bleibt in der Remisbreite.} Rxg6 (45... Kxg6 46. Nd5 $11) 46. Nb5) 45... Kh6 $17 {[%emt 0:00:04]} 46. Ne6 {[%emt 0:00:45]} (46. Re3 $17 {ist wohl besser.} Rh4+ 47. Kg2) 46... Rh4+ $19 {[%emt 0:00:14]} (46... fxe6 47. f7 Rh4+ 48. Kg2 $14) 47. Kg2 {[%emt 0:00:01] [#]} fxe6 $2 {[%emt 0:00:13]} (47... Nd4 $1 $19 {[%cal Rd4f3]} 48. Nxd4 Rxd4 49. Rh3+ Kg5) 48. f7 $11 {[%emt 0:00:15]} Rf4 $1 {[%emt 0:00:11]} 49. f8=Q+ {[%emt 0:00:13]} Rxf8 {[%emt 0:00:01]} 50. Rxf8 {[%emt 0:00:01]} Kg7 {[%emt 0:00:16]} 51. Rf1 {[%emt 0:00:10]} Nd4 {[%emt 0:00:12]} 52. Kg3 {[%emt 0:00:07]} Nf5+ {[%emt 0:00:10]} 53. Kf4 {[%emt 0:00:03]} Kf6 {[%emt 0:00:02]} 54. Rg1 {[%emt 0:00:08]} Nd6 {[%emt 0:00:18]} 55. Rg2 {[%emt 0:00:24]} e5+ {[%emt 0:00:10]} 56. Ke3 {[%emt 0:00:08]} g5 {[%emt 0:00:08]} 57. Rf2+ {[%emt 0:00:04]} Ke6 {[%emt 0:00:03]} 58. Rg2 {[%emt 0:00:04]} Nf5+ {[%emt 0:00:16]} 59. Kf2 {[%emt 0:00:12]} Kf6 {[%emt 0:00:04]} 60. Rg1 {[%emt 0:00:01]} Nd6 {[%emt 0:00:10]} 61. Ke3 {[%emt 0:00:01]} Kf5 {[%emt 0:00:12]} 62. Ra1 {[%emt 0:00:15]} g4 {[%emt 0:00:08]} 63. Ra5 {[%emt 0:00:09]} Ke6 {[%emt 0:00:10]} 64. Ra6 {[%emt 0:00:05]} Kd5 {[%emt 0:00:05]} 65. Ra5+ {[%emt 0:00:35]} Ke6 {[%emt 0:00:01]} 66. Ra8 {[%emt 0:00:14]} Nf5+ {[%emt 0:00:11]} 67. Kf2 {[%emt 0:00:17]} Kd5 {[%emt 0:00:28]} 68. Rf8 {[%emt 0:00:03]} Nd6 {[%emt 0:00:12]} 69. Ke3 {[%emt 0:00:17]} Ke6 {[%emt 0:00:12]} 70. Rg8 {[%emt 0:00:02]} Nf5+ {[%emt 0:00:10]} 71. Kf2 {[%emt 0:00:10]} g3+ {[%emt 0:00:05]} 72. Kf3 {[%emt 0:00:01]} Kd5 {[%emt 0:00:08]} 73. Rg5 {[%emt 0:00:15]} Nd6 {[%emt 0:00:15]} 74. Ke3 {[%emt 0:00:24]} (74. Kxg3 $5 Kd4 $8 75. Rg6 $11) 74... Ke6 {[%emt 0:00:11]} 75. Rg4 {[%emt 0:00:10]} Kd5 {[%emt 0:00:05]} 76. Rg5 {[%emt 0:00:10]} (76. Rxg3 {ist ein Selbstmatt.} Nf5+ 77. Kf2 Nxg3 78. Kxg3 Kd4 79. Kg2 Kxd3 80. Kf2 e4 81. Ke1 Ke3 82. Kd1 Kf2 83. Kd2 e3+ 84. Kd3 e2 85. Ke4 e1=Q+ (85... e1=B 86. Kf5 $11) 86. Kd5 Ke3 87. Ke5 Qd2 88. Kf6 Qd6+ 89. Kg7 Qe7+ 90. Kh6 Kf4 91. Kg6 Kg4 92. Kh6 Kf5 93. Kh5 Qh7#) 76... Ke6 {[%emt 0:00:02]} 0-1